bitfinex-derivatives/quotes_BTCF0:USTF0_20210705
["timestamp","ask_amount","ask_price","bid_price","bid_amount"]
[1625511842038,0.08685882,34026.0,34025.0,2.63708858]
[1625511842143,0.14585882,34026.0,34025.0,2.87766402]
[1625511842239,0.08685882,34026.0,34025.0,2.87766402]
[1625511842447,1.21388215,34027.0,34025.0,2.87766402]
[1625511842545,1.21388215,34027.0,34025.0,2.93466402]
[1625511842947,0.08680847,34028.0,34026.0,2.63520488]
[1625511843046,0.08680847,34028.0,34026.0,2.69220488]
[1625511843348,0.08680847,34028.0,34027.0,0.438]
[1625511843447,0.08680847,34028.0,34027.0,2.63556606]
[1625511844201,0.08680847,34028.0,34027.0,2.8761415]
[1625511844400,0.14580847,34028.0,34027.0,2.8761415]
[1625511844502,0.059,34028.0,34027.0,2.8761415]
[1625511845304,0.059,34028.0,34027.0,2.9351415]
[1625511845417,0.51964617,34031.0,34027.0,2.9351415]
[1625511845530,0.51964617,34031.0,34027.0,2.9921415]
[1625511845710,0.51964617,34031.0,34030.0,0.078]
[1625511845835,1.03911919,34033.0,34030.0,0.438]
[1625511845907,1.03911919,34033.0,34030.0,0.495]
[1625511846009,1.09811919,34033.0,34030.0,0.495]
[1625511846106,1.03911919,34033.0,34030.0,0.495]
[1625511846212,0.9787,34044.0,34032.0,0.9782384]
[1625511846213,0.001,34035.0,34032.0,0.9782384]
[1625511846312,0.001,34035.0,34032.0,1.0942384]
[1625511846407,0.001,34035.0,34032.0,1.1532384]
[1625511846530,0.001,34035.0,34034.0,0.078]
[1625511846606,1.03890651,34039.0,34034.0,0.078]
[1625511846707,1.03890651,34039.0,34034.0,0.32250752]
[1625511846810,1.03745522,34045.0,34035.0,0.057]
[1625511846907,1.03745522,34045.0,34038.0,0.078]
[1625511847007,1.03745522,34045.0,34042.0,4.8691]
[1625511847108,1.03745522,34045.0,34042.0,5.05460752]
[1625511847207,1.03745522,34045.0,34042.0,5.39411752]
[1625511847306,2.43741105,34047.0,34042.0,5.39411752]
[1625511847307,1.22707544,34047.0,34042.0,5.47211752]
[1625511847507,1.22707544,34047.0,34042.0,5.4721026]
[1625511847809,1.22707544,34047.0,34042.0,7.65245205]
[1625511848211,0.24057544,34047.0,34042.0,6.95956861]
[1625511848511,0.24057544,34047.0,34042.0,5.95325348]
[1625511848811,0.24057544,34047.0,34042.0,6.01225348]
[1625511848910,0.24057544,34047.0,34043.0,0.057]
[1625511849011,0.29957544,34047.0,34043.0,0.057]
[1625511849111,0.29957544,34047.0,34043.0,0.116]
[1625511849210,0.29957544,34047.0,34046.0,0.2634926]
[1625511850263,0.059,34047.0,34046.0,0.50406804]
[1625511853920,0.118,34047.0,34046.0,0.50406804]
[1625511854323,0.059,34047.0,34046.0,0.50406804]
[1625511854923,0.118,34047.0,34046.0,0.50406804]
[1625511855123,0.059,34047.0,34046.0,0.50406804]
[1625511855825,0.118,34047.0,34046.0,0.50406804]
[1625511855923,0.059,34047.0,34046.0,0.50406804]
[1625511856025,0.118,34047.0,34046.0,0.50406804]
[1625511857028,0.2064,34047.0,34046.0,0.50406804]
[1625511857228,0.118,34047.0,34046.0,0.50406804]
[1625511857679,0.118,34047.0,34046.0,0.50407726]
[1625511858379,0.2073,34047.0,34046.0,0.50407726]
[1625511858779,0.118,34047.0,34046.0,0.50407726]
[1625511861034,0.118,34047.0,34046.0,0.47097726]
[1625511864744,0.118,34047.0,34042.0,0.48115088]
[1625511864856,0.118,34047.0,34042.0,0.24057544]
[1625511864976,0.2059,34047.0,34028.0,1.00529686]
[1625511865193,0.2059,34047.0,34027.0,1.00587065]
[1625511865394,3.5408,34030.0,34027.0,1.00587065]
[1625511865492,3.81635,34030.0,34027.0,1.00587065]
[1625511865594,3.93435,34030.0,34025.0,0.057]
[1625511866194,3.93435,34030.0,34026.0,0.00348296]
[1625511866295,3.93435,34030.0,34029.0,0.48115088]
[1625511869713,3.6588,34030.0,34029.0,0.48115088]
[1625511870964,3.6588,34030.0,34029.0,0.48463405]
[1625511871766,3.5998,34030.0,34029.0,0.48463405]
[1625511872116,3.5408,34030.0,34029.0,0.48463405]
[1625511872217,3.5998,34030.0,34029.0,0.81667405]
[1625511872866,3.6588,34030.0,34029.0,0.81667405]
[1625511873167,3.6588,34030.0,34029.0,0.81319088]
[1625511873269,3.6588,34030.0,34029.0,0.48115088]
[1625511873718,3.5998,34030.0,34029.0,0.48115088]
[1625511873819,3.6588,34030.0,34029.0,0.48115088]
[1625511874419,3.6588,34030.0,34029.0,0.65564905]
[1625511875775,3.7478,34030.0,34029.0,0.65564905]
[1625511875974,3.6588,34030.0,34029.0,0.65564905]
[1625511883738,3.6588,34030.0,34029.0,0.99316924]
[1625511885754,0.059,34030.0,34029.0,0.99316924]
[1625511885866,0.3456085,34036.0,34029.0,1.28685924]
[1625511885971,0.3456085,34036.0,34029.0,1.34385924]
[1625511886042,0.4046085,34036.0,34029.0,1.34734221]
[1625511886278,0.059,34036.0,34029.0,3.20172498]
[1625511886351,0.34565241,34039.0,34030.0,0.00348281]
[1625511886569,0.34565241,34039.0,34030.0,0.06248281]
[1625511886647,0.2929,34041.0,34038.0,0.48115088]
[1625511886747,0.4109,34041.0,34038.0,0.79573088]
[1625511886894,0.118,34041.0,34038.0,0.85273088]
[1625511886993,0.059,34041.0,34038.0,0.85273088]
[1625511887096,0.059,34041.0,34040.0,0.17365644]
[1625511887346,0.07491419,34041.0,34040.0,0.17365644]
[1625511887847,0.07491419,34041.0,34040.0,0.17365391]
[1625511887947,0.059,34041.0,34040.0,0.17713624]
[1625511888049,0.118,34041.0,34040.0,0.17713624]
[1625511888148,0.07491402,34041.0,34040.0,0.51026557]
[1625511888599,0.13391402,34041.0,34040.0,0.51026557]
[1625511888712,0.13391402,34041.0,34040.0,0.17365391]
[1625511889606,0.07491402,34041.0,34040.0,0.17365391]
[1625511890810,0.059,34041.0,34040.0,0.17365391]
[1625511890960,0.059,34041.0,34040.0,0.51018521]
[1625511892865,0.059,34041.0,34040.0,0.22565391]
[1625511893367,0.059,34041.0,34040.0,0.56194317]
[1625511893968,0.059,34041.0,34040.0,0.22565391]
[1625511894620,0.118,34041.0,34040.0,0.22565391]
[1625511895170,0.059,34041.0,34040.0,0.22565391]
[1625511896119,0.118,34041.0,34040.0,0.22565391]
[1625511896572,0.059,34041.0,34040.0,0.22565391]
[1625511897477,0.059,34041.0,34040.0,1.23545332]
[1625511898980,0.118,34041.0,34040.0,1.23545332]
[1625511899132,0.059,34041.0,34040.0,1.23545332]
[1625511899231,0.118,34041.0,34040.0,1.23545332]
[1625511899331,0.059,34041.0,34040.0,1.23545332]
[1625511902186,0.63794771,34041.0,34040.0,0.22565391]
[1625511902384,0.57894771,34041.0,34040.0,0.22565391]
[1625511902684,0.57894771,34041.0,34040.0,1.23658121]
[1625511902987,0.059,34041.0,34040.0,1.23658121]
[1625511904541,0.059,34041.0,34040.0,2.41561597]
[1625511906241,0.40573502,34041.0,34040.0,1.91097167]
[1625511906641,0.46473502,34041.0,34040.0,1.91097167]
[1625511907142,0.8112885,34041.0,34040.0,0.90004437]
[1625511907241,0.7522885,34041.0,34040.0,0.90004437]
[1625511907442,0.57916884,34041.0,34040.0,1.91152871]
[1625511907742,0.40572147,34041.0,34040.0,1.91152871]
[1625511908244,0.059,34041.0,34040.0,1.91152871]
[1625511908343,0.118,34041.0,34040.0,1.91152871]
[1625511909044,0.81141197,34041.0,34040.0,0.90004437]
[1625511909996,1.85146245,34041.0,34040.0,0.56313048]
[1625511910195,1.86737748,34041.0,34040.0,0.56313048]
[1625511910747,2.10795292,34041.0,34040.0,0.56313048]
[1625511910848,2.10795292,34041.0,34040.0,0.73193023]
[1625511911047,2.10795292,34041.0,34040.0,0.60273023]
[1625511911498,4.7088206,34041.0,34040.0,0.22565391]
[1625511911949,4.7088206,34041.0,34038.0,0.24057544]
[1625511912048,4.7088206,34041.0,34037.0,0.16896629]
[1625511912149,4.7088206,34041.0,34036.0,0.1690565]
[1625511912349,0.0159172,34040.0,34036.0,0.1690565]
[1625511912451,0.0878,34039.0,34036.0,5.65e-05]
[1625511912652,0.2058,34039.0,34036.0,5.65e-05]
[1625511912754,0.48115088,34037.0,34036.0,5.65e-05]
[1625511912852,4.81781853,34037.0,34035.0,0.16917187]
[1625511912952,5.16982853,34037.0,34035.0,0.16917187]
[1625511913052,5.22882853,34037.0,34035.0,0.16917187]
[1625511913151,0.0159179,34036.0,34032.0,0.96811872]
[1625511913251,0.0873,34035.0,34032.0,0.96811872]
[1625511913451,0.118,34035.0,34032.0,0.677064]
[1625511913653,0.01591894,34034.0,34032.0,0.677064]
[1625511913750,0.01591894,34034.0,34032.0,0.587764]
[1625511913850,0.01591894,34034.0,34024.0,1.76396944]
[1625511913851,2.6021918,34033.0,34026.0,1.18576042]
[1625511914051,2.7201918,34033.0,34026.0,1.18576042]
[1625511914204,0.01591894,34032.0,34026.0,1.18576042]
[1625511914302,1.21415981,34031.0,34026.0,1.18576042]
[1625511914504,1.27315981,34031.0,34026.0,1.18576042]
[1625511914624,1.2144801,34030.0,34025.0,1.1863588]
[1625511914701,1.23039949,34030.0,34025.0,1.1863588]
[1625511914802,0.48115088,34026.0,34025.0,1.1863588]
[1625511914903,0.54015088,34026.0,34025.0,1.1863588]
[1625511915003,0.59915088,34026.0,34025.0,1.1863588]
[1625511915103,0.59915088,34026.0,34024.0,1.65257606]
[1625511915603,0.59915088,34026.0,34025.0,1.18622275]
[1625511916305,5.20175088,34026.0,34025.0,1.18622275]
[1625511916612,5.20175088,34026.0,34024.0,1.18705147]
[1625511916703,5.28925088,34026.0,34024.0,1.18705147]
[1625511917009,2.60279675,34025.0,34020.0,0.24057544]
[1625511917105,2.80279675,34025.0,34019.0,1.18906462]
[1625511917206,2.66179675,34025.0,34019.0,0.98506462]
[1625511917306,2.72079675,34025.0,34019.0,0.98506462]
[1625511917404,0.01592282,34024.0,34019.0,0.98506462]
[1625511917504,0.07492282,34024.0,34019.0,0.98506462]
[1625511917706,0.13392282,34024.0,34019.0,0.98506462]
[1625511917817,0.13392282,34024.0,34019.0,0.98156462]
[1625511918004,0.118,34024.0,34019.0,0.98156462]
[1625511918104,1.59596952,34023.0,34015.0,1.3599506]
[1625511918203,1.65496952,34023.0,34015.0,1.3599506]
[1625511918305,1.71396952,34023.0,34015.0,1.3599506]
[1625511918556,1.38701162,34022.0,34012.0,1.35961023]
[1625511918758,1.50501162,34022.0,34012.0,1.35961023]
[1625511918861,0.48115088,34014.0,34012.0,1.35961023]
[1625511918955,0.79924088,34014.0,34012.0,1.35961023]
[1625511919056,0.85824088,34014.0,34012.0,1.35961023]
[1625511919559,0.85824088,34014.0,34011.0,1.36017169]
[1625511919974,0.85824088,34014.0,34011.0,1.41717169]
[1625511920063,0.59915088,34014.0,34011.0,0.057]
[1625511920359,0.54015088,34014.0,34011.0,0.057]
[1625511920461,0.54015088,34014.0,34012.0,1.35757083]
[1625511920558,0.54015088,34014.0,34012.0,1.41457083]
[1625511920659,0.62855088,34014.0,34012.0,1.41457083]
[1625511920958,0.59915088,34014.0,34012.0,1.41457083]
[1625511921159,0.59915088,34014.0,34012.0,0.057]
[1625511921661,5.20775088,34014.0,34012.0,0.057]
[1625511921859,5.20775088,34014.0,34010.0,1.35826839]
[1625511921961,5.20775088,34014.0,34010.0,1.41526839]
[1625511922260,5.20775088,34014.0,34010.0,1.35826839]
[1625511922360,5.20775088,34014.0,34009.0,1.35801166]
[1625511922711,5.20775088,34014.0,34008.0,1.59850891]
[1625511923011,5.20775088,34014.0,34009.0,0.057]
[1625511923864,5.20775088,34014.0,34008.0,1.59850891]
[1625511924366,5.20775088,34014.0,34008.0,0.24057544]
[1625511924867,5.20775088,34014.0,34009.0,0.057]
[1625511928774,5.20775088,34014.0,34008.0,0.24057544]
[1625511928872,5.20775088,34014.0,34005.0,0.057]
[1625511928873,0.24057544,34009.0,34005.0,0.057]
[1625511928972,0.29957544,34009.0,34005.0,0.057]
[1625511929072,0.35857544,34009.0,34005.0,0.057]
[1625511930027,0.35857544,34009.0,34004.0,0.057]
[1625511930877,0.03007563,34005.0,34004.0,0.057]
[1625511930978,0.28179563,34005.0,34003.0,0.29757544]
[1625511931379,0.34079563,34005.0,34003.0,0.29757544]
[1625511931982,0.42779563,34005.0,34003.0,0.29757544]
[1625511932085,3.5302,34004.0,34003.0,0.29757544]
[1625511932185,3.5302,34004.0,34003.0,0.24057544]
[1625511932287,3.5892,34004.0,34003.0,0.24057544]
[1625511933286,3.6482,34004.0,34003.0,0.24057544]
[1625511934386,3.5892,34004.0,34003.0,0.24057544]
[1625511934487,3.6482,34004.0,34003.0,0.24057544]
[1625511936942,3.5892,34004.0,34003.0,0.24057544]
[1625511937142,3.6482,34004.0,34003.0,0.24057544]
[1625511937543,3.5892,34004.0,34003.0,0.24057544]
[1625511937642,3.6482,34004.0,34003.0,0.24057544]
[1625511947114,3.6482,34004.0,34003.0,0.24406161]
[1625511949318,3.6482,34004.0,34003.0,0.24057544]
[1625511951177,3.6482,34004.0,33997.0,0.24057544]
[1625511951678,3.6482,34004.0,33998.0,0.00348647]
[1625511953131,0.24057544,33999.0,33998.0,0.00348647]
[1625511953332,0.29957544,33999.0,33998.0,0.00348647]
[1625511953984,0.35857544,33999.0,33998.0,0.00348647]
[1625511954636,0.29957544,33999.0,33998.0,0.00348647]
[1625511954836,0.24057544,33999.0,33998.0,0.00348647]
[1625511955287,0.29957544,33999.0,33998.0,0.00348647]
[1625511955487,0.24057544,33999.0,33998.0,0.00348647]
[1625511957773,0.24057544,33999.0,33998.0,0.06248647]
[1625511958197,0.24057544,33999.0,33998.0,1.51871735]
[1625511958295,0.24057544,33999.0,33998.0,1.75413735]
[1625511959151,0.24057544,33999.0,33998.0,1.99471279]
[1625511960555,0.24057544,33999.0,33998.0,0.98455887]
[1625511960908,0.24057544,33999.0,33998.0,0.74913887]
[1625511961810,0.24057544,33999.0,33998.0,0.80813887]
[1625511962111,0.24057544,33999.0,33998.0,2.04877798]
[1625511962210,0.24057544,33999.0,33998.0,2.10777798]
[1625511962410,0.24057544,33999.0,33998.0,2.04877798]
[1625511962511,0.24057544,33999.0,33998.0,3.22951086]
[1625511962712,0.24057544,33999.0,33998.0,3.28851086]
[1625511962812,0.24057544,33999.0,33998.0,3.22951086]
[1625511963562,0.24057544,33999.0,33998.0,3.28851086]
[1625511963662,0.24057544,33999.0,33998.0,3.22951086]
[1625511963763,0.24057544,33999.0,33998.0,3.28851086]
[1625511963912,0.24057544,33999.0,33998.0,3.22951086]
[1625511964014,0.24057544,33999.0,33998.0,4.52089182]
[1625511964216,0.24057544,33999.0,33998.0,4.57989182]
[1625511964465,0.24057544,33999.0,33998.0,4.63889182]
[1625511964866,0.24057544,33999.0,33998.0,4.57989182]
[1625511964967,0.24057544,33999.0,33998.0,4.63889182]
[1625511965620,0.24057544,33999.0,33998.0,4.57989182]
[1625511966727,0.24057544,33999.0,33998.0,4.63889182]
[1625511967677,4.018,34003.0,33998.0,4.63889182]
[1625511967778,1.8989,34013.0,33998.0,4.63889182]
[1625511967878,1.9579,34013.0,33999.0,0.057]
[1625511968092,1.8989,34013.0,33999.0,0.11948516]
[1625511968202,1.8989,34013.0,34011.0,0.50669773]
[1625511968279,0.9477,34013.0,34011.0,0.72590773]
[1625511968380,0.9477,34013.0,34011.0,0.78490773]
[1625511968631,0.9477,34013.0,34012.0,0.50992597]
[1625511968728,0.51845768,34020.0,34012.0,0.50992597]
[1625511968932,0.57745768,34020.0,34012.0,0.56892597]
[1625511969032,0.51843576,34023.0,34012.0,1.58101107]
[1625511969134,0.51843576,34023.0,34013.0,0.00348469]
[1625511969235,0.57743576,34023.0,34022.0,0.48115088]
[1625511969331,0.51843576,34023.0,34022.0,0.75367088]
[1625511969432,0.57743576,34023.0,34022.0,0.75367088]
[1625511969534,0.118,34023.0,34022.0,0.75367088]
[1625511969834,0.059,34023.0,34022.0,0.75367088]
[1625511970534,0.118,34023.0,34022.0,0.75367088]
[1625511970634,0.118,34023.0,34022.0,0.48115088]
[1625511970733,0.059,34023.0,34022.0,0.48115088]
[1625511970834,0.118,34023.0,34022.0,0.48115088]
[1625511970935,0.059,34023.0,34022.0,0.48115088]
[1625511971035,0.118,34023.0,34022.0,0.48115088]
[1625511971135,0.059,34023.0,34022.0,0.48115088]
[1625511971236,0.118,34023.0,34022.0,0.48115088]
[1625511971738,0.118,34023.0,34022.0,0.69104088]
[1625511971938,0.059,34023.0,34022.0,0.69104088]
[1625511972087,0.118,34023.0,34022.0,0.69104088]
[1625511972638,0.059,34023.0,34022.0,0.69104088]
[1625511972786,0.118,34023.0,34022.0,0.69104088]
[1625511973645,0.118,34023.0,34022.0,0.48115088]
[1625511975648,0.059,34023.0,34022.0,0.48115088]
[1625511975746,0.059,34023.0,34022.0,0.98781434]
[1625511975897,0.118,34023.0,34022.0,0.98781434]
[1625511975996,0.059,34023.0,34022.0,0.98781434]
[1625511977502,0.5787426,34023.0,34022.0,0.48115088]
[1625511977954,0.059,34023.0,34022.0,0.9879288]
[1625511979660,0.059,34023.0,34022.0,1.66321611]
[1625511980006,0.24057544,34024.0,34022.0,1.66321611]
[1625511980109,0.29957544,34024.0,34022.0,1.66321611]
[1625511980459,0.29957544,34024.0,34022.0,0.9879288]
[1625511980808,0.29957544,34024.0,34023.0,0.50595322]
[1625511981517,0.24057544,34024.0,34023.0,0.50595322]
[1625511981873,5.12197664,34026.0,34023.0,0.56495322]
[1625511981967,4.6026,34026.0,34023.0,1.23919976]
[1625511982270,4.6026,34026.0,34025.0,0.50509728]
[1625511982661,4.6026,34026.0,34025.0,2.24658638]
[1625511982761,0.24057544,34028.0,34025.0,2.30558638]
[1625511982862,0.24057544,34031.0,34025.0,2.30558638]
[1625511983132,0.24057544,34031.0,34025.0,3.4826668]
[1625511983215,0.24057544,34031.0,34025.0,3.4236668]
[1625511983316,0.24057544,34031.0,34025.0,3.4826668]
[1625511983422,0.24057544,34031.0,34030.0,0.48115088]
[1625511983516,0.24057544,34031.0,34030.0,0.74497088]
[1625511984513,0.29957544,34031.0,34030.0,0.74497088]
[1625511984616,0.29957544,34031.0,34030.0,0.48115088]
[1625511985268,0.35857544,34031.0,34030.0,0.48115088]
[1625511985514,0.29957544,34031.0,34030.0,0.48115088]
[1625511985615,0.35857544,34031.0,34030.0,0.48115088]
[1625511986015,1.05001098,34031.0,34030.0,0.48115088]
[1625511986120,1.56863084,34031.0,34030.0,0.48115088]
[1625511986417,2.60552247,34031.0,34030.0,0.48115088]
[1625511986567,2.69302247,34031.0,34030.0,0.48115088]
[1625511986775,1.65613084,34031.0,34030.0,0.48115088]
[1625511987017,2.69304004,34031.0,34030.0,0.48115088]
[1625511988920,2.94018004,34031.0,34030.0,0.48115088]
[1625511989120,4.14961136,34031.0,34030.0,0.48115088]
[1625511989419,4.16558571,34031.0,34030.0,0.48115088]
[1625511991127,5.54755434,34031.0,34030.0,0.48115088]
[1625511991477,4.16558571,34031.0,34030.0,0.48115088]
[1625511991678,4.16558571,34031.0,34022.0,0.48115088]
[1625511991779,4.66558571,34031.0,34022.0,0.48115088]
[1625511991880,6.04761814,34031.0,34022.0,0.48115088]
[1625511991977,0.01597523,34030.0,34022.0,0.48115088]
[1625511992077,0.13397523,34030.0,34022.0,0.48115088]
[1625511992478,0.51834253,34025.0,34022.0,0.48115088]
[1625511992578,0.57734253,34025.0,34022.0,0.48115088]
[1625511992678,0.63634253,34025.0,34022.0,0.48115088]
[1625511993479,0.48115088,34023.0,34022.0,0.48115088]
[1625511993579,0.74981088,34023.0,34022.0,0.48115088]
[1625511993678,0.80881088,34023.0,34022.0,0.48115088]
[1625511993779,0.86781088,34023.0,34022.0,0.48115088]
[1625511994079,0.86781088,34023.0,34022.0,0.24057544]
[1625511994680,0.95631088,34023.0,34022.0,0.24057544]
[1625511994933,1.47465689,34023.0,34022.0,0.24057544]
[1625511995336,6.03765689,34023.0,34022.0,0.24057544]
[1625511995636,6.05363288,34023.0,34016.0,0.24057544]
[1625511995885,0.01597609,34022.0,34016.0,0.24057544]
[1625511996090,0.13397609,34022.0,34016.0,0.24057544]
[1625511996435,0.118,34022.0,34016.0,0.24057544]
[1625511997039,0.059,34022.0,34016.0,0.24057544]
[1625511997186,0.059,34022.0,34016.0,1.42610508]
[1625511997488,0.059,34022.0,34017.0,0.00348446]
[1625511997588,0.24057544,34018.0,34017.0,0.00348446]
[1625511997788,0.29957544,34018.0,34017.0,0.68051382]
[1625511998143,0.29957544,34018.0,34017.0,2.20365209]
[1625511999592,0.24057544,34018.0,34017.0,2.20365209]
[1625512002950,0.24057544,34018.0,34017.0,3.38764978]
[1625512003249,0.24057544,34018.0,34017.0,2.20365209]
[1625512005909,0.24057544,34018.0,34017.0,1.18822658]
[1625512008659,0.24057544,34018.0,34017.0,2.20454958]
[1625512009560,0.24057544,34018.0,34017.0,2.53718958]
[1625512010413,0.48115088,34023.0,34017.0,2.53718958]
[1625512010563,0.48115088,34023.0,34017.0,3.84073808]
[1625512010662,0.5188118,34025.0,34017.0,3.84073808]
[1625512010862,0.5188118,34025.0,34018.0,0.0034838]
[1625512011062,0.5188118,34025.0,34018.0,0.1214838]
[1625512011163,1.21093652,34031.0,34024.0,2.19826382]
[1625512011263,1.21093652,34031.0,34024.0,2.41456382]
[1625512011363,1.21093652,34031.0,34024.0,2.53256382]
[1625512011615,1.9653,34033.0,34030.0,2.193971]
[1625512011716,1.9653,34033.0,34032.0,0.72172632]
[1625512011815,0.967,34033.0,34032.0,1.06148632]
[1625512011916,0.967,34033.0,34032.0,1.12048632]
[1625512012015,0.51888719,34036.0,34032.0,1.12048632]
[1625512012217,0.24057544,34037.0,34032.0,3.31382408]
[1625512012568,0.24057544,34037.0,34034.0,1.18012512]
[1625512012767,0.24057544,34037.0,34034.0,0.73335721]
[1625512012866,0.24057544,34037.0,34035.0,0.50569203]
[1625512013669,0.24057544,34037.0,34035.0,1.17994372]
[1625512013769,0.24057544,34037.0,34036.0,0.24057544]
[1625512014372,0.24057544,34037.0,34036.0,0.74617984]
[1625512015824,0.24057544,34037.0,34036.0,1.42045348]
[1625512018493,0.24057544,34037.0,34036.0,0.74617984]
[1625512018734,0.24057544,34037.0,34036.0,0.24057544]
[1625512021838,0.75952163,34037.0,34036.0,0.24057544]
[1625512023290,1.45162084,34037.0,34036.0,0.24057544]
[1625512023842,1.51062084,34037.0,34036.0,0.24057544]
[1625512024041,1.45162084,34037.0,34036.0,0.24057544]
[1625512024192,0.75952163,34037.0,34036.0,0.24057544]
[1625512024896,0.24057544,34037.0,34036.0,0.24057544]
[1625512025798,0.24057544,34037.0,34036.0,0.74619145]
[1625512026252,0.24057544,34037.0,34036.0,1.42044659]
[1625512029107,0.24057544,34037.0,34036.0,2.43185707]
[1625512029656,0.24057544,34037.0,34036.0,1.42044659]
[1625512034218,0.24057544,34037.0,34036.0,2.43110524]
[1625512034618,0.24057544,34037.0,34036.0,1.42044659]
[1625512034918,0.24057544,34037.0,34036.0,2.43105293]
[1625512035469,0.24057544,34037.0,34036.0,1.42044659]
[1625512039630,0.25653072,34037.0,34036.0,1.42392914]
[1625512039729,0.25653072,34037.0,34036.0,1.73559914]
[1625512042688,0.24057544,34037.0,34036.0,1.73211659]
[1625512042939,0.25653085,34037.0,34036.0,1.73211659]
[1625512043039,0.25653085,34037.0,34036.0,1.73559899]
[1625512045192,0.25653085,34037.0,34036.0,1.42392899]
[1625512045843,0.34473085,34037.0,34036.0,1.42392899]
[1625512046495,0.25653085,34037.0,34036.0,1.42392899]
[1625512047848,0.34393085,34037.0,34036.0,1.42392899]
[1625512048047,0.25653085,34037.0,34036.0,1.42392899]
[1625512051005,0.25653085,34037.0,34036.0,2.43163609]
[1625512053310,0.25653085,34037.0,34036.0,2.68391609]
[1625512058218,0.25653085,34037.0,34036.0,3.86076698]
[1625512059571,0.25653085,34037.0,34036.0,0.49633784]
[1625512060226,0.25653085,34037.0,34036.0,3.85583139]
[1625512063130,4.72803085,34037.0,34036.0,3.85583139]
[1625512066189,4.72803085,34037.0,34036.0,5.20258529]
[1625512068295,4.81499713,34037.0,34036.0,5.20258529]
[1625512070043,4.90199713,34037.0,34036.0,5.20258529]
[1625512070144,6.03265901,34037.0,34036.0,6.72152556]
[1625512070593,1.56115901,34037.0,34036.0,6.72152556]
[1625512070693,1.47415901,34037.0,34036.0,6.72152556]
[1625512071198,1.47415901,34037.0,34036.0,11.14892556]
[1625512071445,1.11040398,34037.0,34036.0,11.14892556]
[1625512071745,0.32769479,34037.0,34036.0,11.14892556]
[1625512072697,0.24057544,34037.0,34036.0,11.14892556]
[1625512073999,0.24057544,34037.0,34036.0,11.20792556]
[1625512075801,0.24057544,34037.0,34036.0,11.26692556]
[1625512076053,0.60900463,34039.0,34036.0,11.26692556]
[1625512076154,0.60900463,34039.0,34036.0,11.32392556]
[1625512076355,0.60894266,34041.0,34038.0,6.22767609]
[1625512076453,0.60894266,34041.0,34038.0,6.28467609]
[1625512076555,0.60894266,34041.0,34038.0,6.34367609]
[1625512076706,0.26099772,34042.0,34040.0,6.7042333]
[1625512076811,0.26099772,34042.0,34040.0,6.7612333]
[1625512076907,0.26099772,34042.0,34040.0,6.8792333]
[1625512077107,0.26099772,34042.0,34041.0,0.00348152]
[1625512077210,0.08705716,34042.0,34041.0,6.28399867]
[1625512077308,0.08705716,34042.0,34041.0,6.34299867]
[1625512077961,0.60870365,34043.0,34041.0,6.34299867]
[1625512078060,0.60870365,34043.0,34041.0,6.39999867]
[1625512078259,0.60870365,34043.0,34042.0,0.00348145]
[1625512078358,0.60870365,34043.0,34042.0,0.12148145]
[1625512078558,0.26099631,34043.0,34042.0,6.34150064]
[1625512079009,0.84914916,34044.0,34042.0,6.34150064]
[1625512079111,0.69492335,34046.0,34042.0,6.39850064]
[1625512079317,0.69492335,34046.0,34043.0,0.00348141]
[1625512079411,0.69492335,34046.0,34043.0,0.06248141]
[1625512079510,0.69492335,34046.0,34043.0,0.40226141]
[1625512079619,0.69492335,34046.0,34043.0,0.45926141]
[1625512079812,0.69492335,34046.0,34044.0,0.00348135]
[1625512079911,0.69492335,34046.0,34044.0,0.06248135]
[1625512080011,0.69492335,34046.0,34044.0,0.12148135]
[1625512080113,0.69492335,34046.0,34044.0,0.17848135]
[1625512080213,6.63194784,34059.0,34045.0,4.19816038]
[1625512080214,0.69491573,34048.0,34045.0,4.19816038]
[1625512080415,0.69491573,34048.0,34045.0,4.37664173]
[1625512080615,0.69491573,34048.0,34046.0,0.00348135]
[1625512080717,0.69491573,34048.0,34047.0,4.19812053]
[1625512080815,0.69491573,34048.0,34047.0,4.67927141]
[1625512080915,0.69491573,34048.0,34047.0,4.73827141]
[1625512081216,0.71086108,34048.0,34047.0,4.74175272]
[1625512081580,0.71086108,34048.0,34047.0,4.68275272]
[1625512081670,0.71086108,34048.0,34047.0,4.43869597]
[1625512081922,1.75267526,34048.0,34047.0,3.0952974]
[1625512082373,1.81167526,34048.0,34047.0,3.0952974]
[1625512082622,3.02711612,34048.0,34047.0,1.91982365]
[1625512082823,3.32669156,34048.0,34047.0,1.67924821]
[1625512083427,4.71588764,34048.0,34046.0,0.67289564]
[1625512083628,0.0889,34047.0,34046.0,0.67289564]
[1625512083730,4.86148764,34048.0,34046.0,0.67289564]
[1625512083826,0.07495052,34047.0,34046.0,0.67289564]
[1625512084477,4.41707353,34047.0,34046.0,0.67289564]
[1625512085277,4.41707353,34047.0,34045.0,0.67336715]
[1625512085578,4.35807353,34047.0,34045.0,0.67336715]
[1625512085679,1.38943074,34047.0,34046.0,0.67311349]
[1625512085980,1.44843074,34047.0,34046.0,0.67311349]
[1625512086079,1.40538093,34047.0,34046.0,0.67311349]
[1625512086182,4.35814307,34047.0,34046.0,0.67311349]
[1625512086280,4.41714307,34047.0,34046.0,0.67311349]
[1625512086380,4.35814307,34047.0,34046.0,0.67311349]
[1625512087082,4.41714307,34047.0,34046.0,0.67311349]
[1625512087182,4.35814307,34047.0,34046.0,0.67311349]
[1625512088585,4.41714307,34047.0,34046.0,0.67311349]
[1625512088688,4.35814307,34047.0,34046.0,0.67311349]
[1625512088784,4.41714307,34047.0,34046.0,0.67311349]
[1625512092500,4.74636307,34047.0,34045.0,0.6728523]
[1625512092947,0.0159514,34046.0,34045.0,0.6728523]
[1625512093199,4.41706168,34046.0,34045.0,0.6728523]
[1625512093349,4.35806168,34046.0,34045.0,0.6728523]
[1625512094103,4.35806168,34046.0,34045.0,0.67633394]
[1625512094653,2.96863501,34046.0,34045.0,2.87527651]
[1625512095904,2.96863501,34046.0,34045.0,2.87179487]
[1625512096205,2.96863501,34046.0,34045.0,2.87527649]
[1625512096957,2.96863501,34046.0,34045.0,3.11585193]
[1625512098715,3.02763501,34046.0,34045.0,3.11585193]
[1625512098938,3.08663501,34046.0,34045.0,3.11585193]
[1625512099114,3.08663501,34046.0,34045.0,3.11237031]
[1625512099217,3.08663501,34046.0,34045.0,1.92832431]
[1625512099517,4.4761082,34046.0,34045.0,1.92832431]
[1625512099820,4.4171082,34046.0,34045.0,1.92832431]
[1625512099917,4.3581082,34046.0,34045.0,1.93180592]
[1625512100519,1.75286497,34046.0,34045.0,3.11768696]
[1625512100617,0.0159514,34046.0,34045.0,3.11768696]
[1625512100717,1.63000906,34048.0,34045.0,3.11768696]